bitfinex-derivatives/quotes_ETHF0:USTF0_20241008
["timestamp","ask_amount","ask_price","bid_price","bid_amount"]
[1728370629018,3.2,2436.9,2436.8,3.2078]
[1728370629221,3.2,2436.9,2436.8,3.61827]
[1728370630620,0.41044,2437.0,2436.8,7.3118]
[1728370630822,3.61044,2437.0,2436.8,3.61826]
[1728370632723,3.61044,2437.0,2436.8,3.2078]
[1728370632927,3.61044,2437.0,2436.8,3.61826]
[1728370633425,3.61044,2437.0,2436.9,0.41046]
[1728370633825,3.2,2437.0,2436.9,0.41046]
[1728370634120,0.718,2437.3,2437.2,0.4104]
[1728370634121,0.41039,2437.3,2437.2,0.4104]
[1728370636626,3.9274,2437.5,2437.2,0.4104]
[1728370636823,3.2,2437.3,2437.2,0.4104]
[1728370637822,3.61039,2437.3,2437.2,0.4104]
[1728370639329,3.61039,2437.3,2437.2,1.1302]
[1728370639833,3.2,2437.3,2437.2,1.1302]
[1728370640135,3.61039,2437.3,2437.2,1.1302]
[1728370640425,3.2,2437.3,2437.2,1.1302]
[1728370640627,3.61039,2437.3,2437.2,1.1302]
[1728370640827,3.2,2437.3,2437.2,1.1302]
[1728370641725,3.2,2437.7,2437.2,4.823]
[1728370642031,0.41034,2437.6,2437.5,0.41035]
[1728370642234,0.41034,2437.6,2437.5,1.15045]
[1728370642424,0.41034,2437.6,2437.5,1.89775]
[1728370643522,0.41034,2437.6,2437.5,1.4874]
[1728370643723,0.41034,2437.6,2437.5,1.89775]
[1728370644124,0.41034,2437.6,2437.5,1.4874]
[1728370644324,0.41035,2437.5,2437.4,3.2078]
[1728370644620,3.2,2437.5,2437.4,3.61817]
[1728370646230,3.61035,2437.5,2437.4,3.61817]
[1728370647732,3.2,2437.5,2437.4,3.61817]
[1728370648538,3.2,2437.6,2437.5,0.41034]
[1728370649430,3.2,2438.0,2437.9,0.41028]
[1728370649631,3.61027,2438.0,2437.9,3.2078]
[1728370650636,7.71187,2438.0,2437.9,3.2078]
[1728370650827,0.41032,2437.8,2437.6,0.41034]
[1728370651027,4.30972,2437.7,2437.6,0.41034]
[1728370651228,5.02562,2437.7,2437.6,0.41034]
[1728370654333,4.6153,2437.7,2437.6,0.41034]
[1728370654933,5.02562,2437.7,2437.6,0.41034]
[1728370656334,3.2,2437.7,2437.6,0.41034]
[1728370656539,3.61032,2437.7,2437.6,0.41034]
[1728370656738,4.618,2437.7,2437.6,0.41034]
[1728370659035,3.9183,2437.7,2437.6,0.41034]
[1728370659240,3.2,2437.7,2437.6,0.41034]
[1728370659436,3.2,2437.7,2437.6,1.11614]
[1728370660128,3.2,2437.8,2437.6,0.7058]
[1728370660334,3.2,2437.8,2437.7,0.41032]
[1728370661342,3.9457,2437.8,2437.7,0.41032]
[1728370663438,4.356,2437.8,2437.7,0.41032]
[1728370664545,2.636,2437.8,2437.7,0.41032]
[1728370668475,2.636,2437.8,2437.5,3.2078]
[1728370668476,2.2257,2437.8,2437.5,3.2078]
[1728370668636,2.2257,2437.8,2437.3,0.096]
[1728370668637,1.48,2437.6,2437.3,0.096]
[1728370668842,1.48,2437.6,2437.3,0.41038]
[1728370668843,1.89037,2437.4,2437.3,0.41038]
[1728370669533,1.48,2437.4,2437.3,0.41038]
[1728370670444,3.2,2437.4,2437.2,3.9182]
[1728370670647,3.61037,2437.4,2437.3,0.41039]
[1728370670843,3.2,2437.4,2437.3,0.41039]
[1728370671040,3.2,2437.4,2437.2,3.9182]
[1728370671351,3.61038,2437.4,2437.3,0.41039]
[1728370672239,3.61038,2437.4,2437.2,3.9182]
[1728370672444,3.61038,2437.4,2437.3,0.41039]
[1728370674143,0.41039,2437.3,2437.2,4.3286]
[1728370674345,0.41039,2437.3,2437.2,3.2078]
[1728370674546,1.13659,2437.3,2437.2,3.6182]
[1728370675242,1.13659,2437.3,2437.2,3.2078]
[1728370675444,4.8294,2437.3,2436.9,3.9056]
[1728370675649,3.2,2437.1,2436.9,0.6978]
[1728370675950,0.7305,2437.0,2436.9,0.41046]
[1728370676149,3.9305,2437.0,2436.9,0.41046]
[1728370676353,4.34094,2437.0,2436.8,3.9469]
[1728370676645,0.7385,2436.9,2436.8,4.35737]
[1728370677452,0.7385,2436.9,2436.8,3.9469]
[1728370678639,0.7385,2436.9,2436.8,4.35737]
[1728370679955,3.2,2437.0,2436.8,3.9469]
[1728370680149,3.2,2437.0,2436.9,0.41046]
[1728370680356,1.08991,2437.2,2436.9,0.41046]
[1728370680357,3.2,2437.1,2436.9,0.41046]
[1728370680553,3.2,2437.1,2437.0,0.7374]
[1728370680745,3.61042,2437.1,2437.0,0.7374]
[1728370687458,0.4104,2437.3,2437.1,0.41042]
[1728370687752,0.41039,2437.3,2437.2,4.5741]
[1728370688155,4.34958,2437.4,2437.2,4.5741]
[1728370688357,0.41039,2437.3,2437.2,4.5741]
[1728370688553,1.08649,2437.3,2437.2,3.8964]
[1728370689554,1.08649,2437.3,2437.2,3.2078]
[1728370689754,0.41046,2436.9,2436.8,5.00306]
[1728370689956,3.61045,2437.0,2436.8,5.00306]
[1728370690457,1.48,2436.9,2436.8,1.79526]
[1728370690758,1.48,2436.9,2436.8,5.00306]
[1728370692470,1.89046,2436.9,2436.8,0.7071]
[1728370692659,2.60116,2436.9,2436.8,1.11757]
[1728370693050,2.60116,2436.9,2436.8,0.7071]
[1728370693562,2.60116,2436.9,2436.8,1.11757]
[1728370694558,2.1907,2436.9,2436.8,1.11757]
[1728370697074,2.60116,2436.9,2436.8,1.11757]
[1728370697359,2.1907,2436.9,2436.8,0.7071]
[1728370697563,2.60116,2436.9,2436.8,0.7071]
[1728370697759,2.60116,2436.9,2436.6,1.1501]
[1728370697962,1.89049,2436.7,2436.6,1.13251]
[1728370699762,1.48,2436.7,2436.5,3.61832]
[1728370699968,0.41051,2436.6,2436.5,3.61832]
[1728370700161,0.41051,2436.6,2436.5,3.2078]
[1728370700864,1.8905,2436.7,2436.5,3.61831]
[1728370703271,1.8905,2436.7,2436.6,0.41051]
[1728370703466,1.8905,2436.7,2436.6,1.12151]
[1728370708180,1.8905,2436.7,2436.6,4.32931]
[1728370709176,1.48,2436.7,2436.6,4.32931]
[1728370709379,1.89049,2436.7,2436.6,4.32931]
[1728370711480,1.48,2436.7,2436.6,3.61831]
[1728370712579,1.89049,2436.7,2436.6,3.61831]
[1728370712776,1.48,2436.7,2436.6,3.61831]
[1728370713167,1.89049,2436.7,2436.6,3.61831]
[1728370713578,1.48,2436.7,2436.6,3.61831]
[1728370714189,1.89049,2436.7,2436.6,3.2078]
[1728370714779,2.55699,2436.7,2436.6,3.2078]
[1728370715478,2.55699,2436.7,2436.1,0.096]
[1728370715479,12.2505,2436.7,2436.3,3.2078]
[1728370715779,0.41054,2436.4,2436.3,3.2078]
[1728370716174,1.86254,2436.4,2436.3,3.2078]
[1728370716372,1.452,2436.4,2436.3,3.61836]
[1728370717976,1.86254,2436.4,2436.3,3.61836]
[1728370719779,1.48,2436.5,2436.3,3.2078]
[1728370719980,1.89052,2436.5,2436.4,0.6807]
[1728370720175,0.724,2436.6,2436.4,1.09124]
[1728370720372,1.48,2436.5,2436.4,1.09124]
[1728370726184,1.89052,2436.5,2436.4,1.09124]
[1728370726385,1.48,2436.5,2436.4,1.09124]
[1728370727585,1.89052,2436.5,2436.4,1.09124]
[1728370727784,1.48,2436.5,2436.4,1.09124]
[1728370727987,1.89052,2436.5,2436.4,1.09124]
[1728370728686,1.89052,2436.5,2436.4,4.29904]
[1728370730386,1.89052,2436.5,2436.4,3.8885]
[1728370730595,1.89052,2436.5,2436.4,0.6807]
[1728370730893,1.89052,2436.5,2436.4,3.8885]
[1728370731680,1.89052,2436.5,2436.4,0.6807]
[1728370731890,1.89052,2436.5,2436.4,3.8885]
[1728370732282,1.89052,2436.5,2436.4,4.29904]
[1728370734387,1.89052,2436.5,2436.4,1.09124]
[1728370734893,1.89052,2436.5,2436.4,4.29904]
[1728370735488,1.89052,2436.5,2436.4,1.09124]
[1728370736091,1.89052,2436.5,2436.4,4.29904]
[1728370736489,0.096,2438.8,2436.4,20.03574689]
[1728370736694,1.48,2437.6,2437.1,3.2078]
[1728370736892,1.384,2437.6,2437.4,3.2078]
[1728370737087,1.79434,2437.6,2437.4,3.2078]
[1728370737396,1.384,2437.6,2437.4,3.2078]
[1728370738293,1.384,2437.6,2437.4,3.61817]
[1728370738685,1.384,2437.6,2437.4,3.2078]
[1728370739090,0.41033,2437.7,2437.4,3.2078]
[1728370739292,1.48,2437.5,2437.4,3.61817]
[1728370745615,40.8,2438.2,2437.4,7.3102]
[1728370745818,0.41028,2438.0,2437.9,0.41028]
[1728370746115,1.89028,2438.0,2437.9,0.41028]
[1728370746302,2.7861,2438.0,2437.9,0.41028]
[1728370746505,1.48,2438.0,2437.9,0.41028]
[1728370747512,1.48,2438.3,2438.0,1.02568]
[1728370747815,1.48,2438.3,2438.2,0.41024]
[1728370749119,1.48,2438.3,2438.1,4.5559]
[1728370749311,1.48,2438.2,2438.1,4.96614]
[1728370750411,3.2,2438.2,2438.1,4.96614]
[1728370752017,3.2,2438.2,2438.1,1.75834]
[1728370757519,3.2,2438.2,2438.1,1.06984]
[1728370757709,3.61024,2438.2,2438.1,1.06984]
[1728370758115,3.2,2438.2,2438.1,1.06984]
[1728370759217,3.61024,2438.2,2438.1,1.06984]
[1728370760224,3.2,2438.2,2438.1,1.06984]
[1728370762626,3.61024,2438.2,2438.1,1.06984]
[1728370763425,3.2,2438.2,2438.1,1.06984]
[1728370765621,3.2,2438.2,2438.1,4.27764]
[1728370766126,3.61024,2438.2,2438.1,4.27764]
[1728370767821,3.61024,2438.2,2438.1,3.8674]
[1728370768028,7.71184,2438.2,2438.1,3.2078]
[1728370768524,7.71184,2438.2,2437.8,0.5063]
[1728370768525,0.41029,2437.9,2437.8,0.5063]
[1728370768725,3.2,2437.9,2437.8,0.4103]
[1728370769829,1.07366,2438.1,2438.0,0.41027]
[1728370769830,3.8634,2438.1,2438.0,0.41027]
[1728370770028,3.8634,2438.1,2438.0,3.61807]
[1728370770223,4.27365,2438.1,2438.0,3.61807]
[1728370770420,3.8634,2438.1,2438.0,3.61807]
[1728370770629,4.27365,2438.1,2438.0,3.61807]
[1728370770930,3.8634,2438.1,2438.0,3.61807]
[1728370771126,4.27365,2438.1,2438.0,3.61807]
[1728370771629,3.8634,2438.1,2438.0,3.61807]
[1728370771831,4.27365,2438.1,2438.0,3.61807]
[1728370772133,4.27365,2438.1,2438.0,0.41027]
[1728370772539,2.55365,2438.1,2438.0,0.41027]
[1728370774630,2.55365,2438.1,2437.9,0.6745]
[1728370774828,2.55365,2438.1,2438.0,0.41027]
[1728370775029,2.1434,2438.1,2437.9,0.6745]
[1728370775231,2.55367,2438.1,2437.9,1.08477]
[1728370777330,2.1434,2438.1,2437.9,1.08477]
[1728370777632,0.41027,2438.0,2437.9,1.08477]
[1728370778530,0.41027,2438.0,2437.9,0.6745]
[1728370778732,0.6451,2438.0,2437.7,3.2078]
[1728370779036,0.4103,2437.8,2437.6,1.10772]
[1728370779232,1.89032,2437.7,2437.6,1.10772]
[1728370779428,2.55192,2437.7,2437.6,1.10772]
[1728370779625,2.55192,2437.7,2437.6,0.6974]
[1728370779932,0.41035,2437.5,2437.4,4.93366]
[1728370780233,0.41035,2437.5,2437.4,3.2078]
[1728370780234,1.89035,2437.5,2437.4,3.2078]
[1728370780535,5.99275,2437.5,2437.4,3.2078]
[1728370780734,6.67385,2437.5,2437.4,3.2078]
[1728370786839,5.19385,2437.5,2437.4,3.2078]
[1728370787135,6.67385,2437.5,2437.4,3.2078]
[1728370788140,2.57145,2437.5,2437.4,3.2078]
[1728370788536,2.57145,2437.5,2437.4,3.8893]
[1728370788843,6.67385,2437.5,2437.4,3.8893]
[1728370789741,6.67385,2437.5,2437.4,0.6815]
[1728370791231,6.2635,2437.5,2437.3,3.2078]
[1728370791437,0.41037,2437.4,2437.3,3.2078]
[1728370793540,2.1611,2437.5,2437.2,0.65]
[1728370793744,1.89039,2437.3,2437.2,0.65]
[1728370793936,1.89039,2437.3,2437.2,3.8578]
[1728370797846,1.89039,2437.3,2437.2,3.2078]
[1728370799039,1.48,2437.3,2437.1,0.6303]
[1728370799346,1.89039,2437.3,2437.2,3.2078]
[1728370801642,1.48,2437.3,2437.2,3.6182]
[1728370801944,1.89039,2437.3,2437.2,3.2078]
[1728370802448,1.48,2437.3,2437.2,3.6182]
[1728370802946,0.6811,2437.5,2437.3,0.41038]
[1728370802947,1.89038,2437.4,2437.3,0.41038]
[1728370803148,1.89038,2437.4,2437.3,1.3235]
[1728370804550,0.41038,2437.4,2437.3,1.3235]
[1728370804851,1.89038,2437.4,2437.3,1.3235]
[1728370805646,1.48,2437.4,2437.2,3.2078]
[1728370805844,0.6653,2437.3,2437.2,3.2078]
[1728370806050,0.41039,2437.3,2437.2,3.6182]
[1728370806249,0.41039,2437.3,2437.2,3.2078]
[1728370807445,0.41039,2437.3,2437.2,3.6182]
[1728370807753,0.41039,2437.3,2437.2,3.2078]
[1728370811856,0.41044,2437.0,2436.9,1.428]
[1728370812052,1.89044,2437.0,2436.9,4.5398]
[1728370815264,1.89044,2437.0,2436.9,3.2078]
[1728370816663,1.48,2437.0,2436.7,0.6954]
[1728370816965,1.89047,2436.8,2436.7,0.6954]
[1728370817160,1.89047,2436.8,2436.5,3.8932]
[1728370817357,1.48,2436.6,2436.5,4.30372]
[1728370819866,1.89051,2436.6,2436.5,3.8932]
[1728370820071,1.89051,2436.6,2436.5,0.6854]
[1728370821471,1.89051,2436.6,2436.4,0.6439]
[1728370821472,1.48,2436.6,2436.4,0.6439]
[1728370821663,0.41052,2436.5,2436.4,0.6439]
[1728370823067,0.41052,2436.5,2436.4,1.05444]
[1728370823676,0.41052,2436.5,2436.4,0.6439]
[1728370824678,0.41052,2436.5,2436.4,1.05444]
[1728370825374,0.41052,2436.5,2436.4,0.6439]
[1728370825968,2.173,2436.6,2436.3,0.6954]
[1728370826169,0.41056,2436.3,2436.2,0.6699]
[1728370826369,1.48,2436.4,2436.0,1.3457]
[1728370826583,1.48,2436.1,2436.0,2.44271]
[1728370828670,1.89059,2436.1,2436.0,2.44271]
[1728370829675,1.48,2436.1,2436.0,2.44271]
[1728370830075,1.89059,2436.1,2436.0,2.0321]
[1728370830383,0.41062,2435.9,2435.8,3.2078]
[1728370830576,1.48,2435.9,2435.8,3.61843]
[1728370834483,1.48,2436.0,2435.8,3.2078]
[1728370834688,1.48,2436.0,2435.9,0.41062]
[1728370835283,1.48,2436.3,2435.9,4.1048]
[1728370835482,1.48,2436.3,2436.2,0.41057]
[1728370835686,1.89056,2436.3,2436.2,0.41057]
[1728370835881,1.89056,2436.3,2436.2,1.71197]
[1728370837190,0.14309327,2436.6,2436.2,12.43262]
[1728370837386,0.14309327,2436.6,2436.5,3.61832]
[1728370837796,0.14309327,2436.6,2436.5,7.72232]
[1728370837983,1.02582,2437.7,2436.5,14.7918]
[1728370838182,1.48,2437.1,2437.0,3.2078]
[1728370838390,1.48,2437.1,2437.0,3.61824]
[1728370838589,1.48,2437.1,2437.0,3.2078]
[1728370838891,0.6381,2437.5,2437.0,7.311]
[1728370839087,0.6381,2437.5,2437.2,0.41039]
[1728370839289,1.48,2437.3,2437.2,0.41039]
[1728370840180,1.48,2437.3,2437.1,1.05141]
[1728370840383,3.2,2437.3,2437.1,1.05141]
[1728370840583,3.61039,2437.3,2437.1,1.05141]
[1728370840790,3.2,2437.3,2437.1,1.05141]
[1728370841491,3.2,2437.3,2437.1,0.641]
[1728370841691,3.2,2437.3,2437.2,1.0496]
[1728370842989,3.2,2437.3,2437.2,0.6392]
[1728370843192,3.2,2437.3,2437.2,1.0496]
[1728370844295,3.2,2437.3,2437.2,0.6392]
[1728370844497,3.2,2437.3,2437.2,1.0496]
[1728370844689,3.61039,2437.3,2437.2,0.6392]
[1728370844888,3.2,2437.3,2437.1,0.641]
[1728370845091,0.4104,2437.2,2437.1,0.641]
[1728370845488,0.4104,2437.2,2437.0,3.61823]
[1728370845698,3.2,2437.1,2437.0,3.61823]
[1728370845891,3.2,2437.1,2437.0,0.41043]
[1728370847393,3.2,2437.1,2437.0,3.61823]
[1728370849499,0.41044,2437.0,2436.7,3.88]
[1728370849801,3.2,2436.9,2436.8,0.41046]
[1728370850496,3.2,2436.9,2436.7,3.88]
[1728370850702,3.2,2436.9,2436.8,0.41047]
[1728370852401,3.61046,2436.9,2436.8,0.41047]
[1728370853703,3.2,2436.9,2436.8,0.41047]
[1728370856504,3.61046,2436.9,2436.8,0.41047]
[1728370858502,3.2,2436.9,2436.8,0.41047]
[1728370858702,3.61046,2436.9,2436.8,0.41047]
[1728370859100,3.2,2436.9,2436.8,0.41047]
[1728370859705,3.61046,2436.9,2436.7,3.88]
[1728370859907,0.6898,2436.8,2436.7,4.29049]
[1728370860605,0.6898,2436.8,2436.7,3.61829]
[1728370860807,0.6898,2436.8,2436.7,4.31129]
[1728370861499,1.10027,2436.8,2436.7,3.2078]
[1728370861905,1.75097,2436.8,2436.5,0.6467]
[1728370862210,1.75097,2436.8,2436.7,0.41049]
[1728370862402,3.23097,2436.8,2436.7,0.41049]
[1728370862909,2.8205,2436.8,2436.7,0.41049]
[1728370863302,3.23097,2436.8,2436.7,0.41049]
[1728370864106,2.8205,2436.8,2436.5,0.6467]
[1728370864303,1.48,2436.6,2436.5,1.05721]
[1728370865399,0.41057,2436.3,2436.1,0.50658]
[1728370865599,1.2904,2436.5,2436.0,0.6708]
[1728370865908,1.48,2436.5,2436.4,0.41054]
[1728370869206,1.48,2436.5,2436.3,2.36134]
[1728370869409,1.48,2436.5,2436.4,0.41054]
[1728370869811,1.48,2436.5,2436.3,1.9508]
[1728370870012,1.89053,2436.5,2436.3,2.36135]
[1728370870207,1.48,2436.5,2436.3,1.9508]
[1728370870413,1.48,2436.5,2436.4,0.41054]
[1728370871515,1.89053,2436.5,2436.3,5.56915]
[1728370872619,1.48,2436.5,2436.4,0.41054]
[1728370873116,1.89053,2436.5,2436.3,5.56915]
[1728370873507,1.48,2436.5,2436.3,5.1586]
[1728370873710,1.48,2436.5,2436.4,0.41054]
[1728370874213,1.89052,2436.5,2436.3,5.56915]
[1728370874415,1.48,2436.4,2436.3,5.56915]
[1728370874615,1.89054,2436.4,2436.3,5.1586]
[1728370874806,2.54954,2436.4,2436.3,5.1586]
[1728370875608,2.54954,2436.4,2436.3,3.8786]
[1728370875817,2.139,2436.4,2436.3,3.8786]
[1728370876011,2.54954,2436.4,2436.3,3.8786]
[1728370876526,0.41058,2436.2,2436.0,4.9523]
[1728370876713,0.41058,2436.2,2436.1,0.6477]
[1728370877012,1.89058,2436.2,2436.1,0.6477]
[1728370877418,1.89058,2436.2,2436.0,3.2078]
[1728370877419,0.41059,2436.1,2436.0,3.2078]
[1728370877611,1.04209,2436.1,2436.0,3.2078]
[1728370880820,0.41062,2435.9,2435.8,1.3206]
[1728370881019,1.89062,2435.9,2435.8,1.3206]
[1728370881322,0.41064,2435.8,2435.7,3.2078]
[1728370881617,1.71324,2435.8,2435.7,3.2078]
[1728370882214,0.41061,2436.0,2435.8,0.41063]
[1728370882422,0.41061,2436.0,2435.9,0.6739]
[1728370882618,1.89061,2436.0,2435.9,0.6739]
[1728370883220,1.48,2436.0,2435.9,0.6739]
[1728370883426,1.48,2436.0,2435.9,1.08452]
[1728370883927,1.89061,2436.0,2435.9,0.6739]
[1728370885226,0.41062,2435.9,2435.8,0.6297]
[1728370885431,1.03862,2435.9,2435.8,0.6297]
[1728370886924,0.41064,2435.8,2435.7,3.2078]
[1728370887120,1.89064,2435.8,2435.7,3.2078]
[1728370887930,2.53174,2435.8,2435.7,3.2078]
[1728370890835,2.1211,2435.8,2435.6,0.6677]
[1728370891039,2.1211,2435.8,2435.5,1.296]
[1728370891236,1.89067,2435.6,2435.5,0.6355]
[1728370892033,1.89067,2435.6,2435.5,1.04619]
[1728370892236,1.48,2435.6,2435.5,1.04619]
[1728370892740,1.05175,2435.8,2435.6,0.41067]
[1728370892938,1.48,2435.7,2435.6,0.41067]
[1728370893336,1.89067,2435.7,2435.5,1.04618]
[1728370895141,0.6447,2435.6,2435.5,1.04618]
[1728370896543,1.89067,2435.7,2435.5,1.04618]
[1728370896745,2.53537,2435.7,2435.5,1.04618]
[1728370900445,0.41067,2435.6,2435.5,1.04618]
[1728370900949,0.41067,2435.6,2435.5,1.04619]
[1728370901144,0.41069,2435.6,2435.4,0.4107]
[1728370901342,0.41069,2435.6,2435.5,0.6307]
[1728370901544,1.89069,2435.6,2435.5,0.6307]
[1728370902442,1.48,2435.6,2435.5,0.6307]
[1728370902647,1.48,2435.6,2435.5,1.04139]
[1728370904445,1.89067,2435.6,2435.5,1.04139]
[1728370904642,1.48,2435.6,2435.5,1.04139]
[1728370904855,1.48,2435.6,2435.5,5.14699]
[1728370906952,0.41065,2435.8,2435.5,4.7363]
[1728370907153,1.04722,2436.0,2435.8,0.41063]
[1728370907459,1.04722,2436.0,2435.9,0.6868]
[1728370907955,1.48,2436.0,2435.9,1.09741]
[1728370908257,1.89061,2436.0,2435.9,0.6868]
[1728370908660,1.48,2436.0,2435.9,5.20222]
[1728370908854,0.6285,2436.3,2435.9,4.7916]
[1728370909058,1.48,2436.3,2436.1,3.61838]
[1728370909262,1.48,2436.3,2436.2,1.3131]
[1728370909451,1.89056,2436.3,2436.2,1.9999]
[1728370910460,0.41057,2436.2,2436.1,3.2078]
[1728370910752,3.22687,2436.2,2436.1,3.2078]
[1728370911355,1.09577,2436.2,2436.1,3.2078]
[1728370911557,2.57577,2436.2,2436.1,3.2078]
[1728370914457,2.57577,2436.2,2436.1,4.5394]
[1728370915262,2.57577,2436.2,2436.1,3.8891]
[1728370915653,2.57577,2436.2,2436.1,3.2078]
[1728370917070,1.89057,2436.2,2436.1,3.61839]
[1728370917259,1.89057,2436.2,2436.1,4.28229]
[1728370918166,1.89057,2436.2,2436.1,3.8717]
[1728370918360,1.89057,2436.2,2436.1,4.28229]
[1728370919366,1.89057,2436.2,2436.1,8.38709]
[1728370919367,1.48,2436.2,2436.1,8.38709]
[1728370919570,0.41056,2436.3,2436.2,0.41056]
[1728370919763,1.48,2436.3,2436.2,1.09296]
[1728370920360,1.71758,2436.6,2436.2,1.09296]
[1728370920361,0.41051,2436.6,2436.5,0.41052]
[1728370920662,0.41051,2436.6,2436.2,4.7872]
[1728370920663,1.89051,2436.6,2436.4,3.61833]
[1728370920864,1.48,2436.5,2436.4,3.61833]
[1728370924576,1.48,2436.9,2436.7,1.02623]
[1728370924771,1.48,2437.1,2436.8,8.6218]
[1728370924967,1.48,2437.1,2437.0,0.41043]
[1728370925675,1.48,2437.1,2436.8,4.5178]
[1728370925863,1.48,2436.9,2436.8,4.92827]
[1728370926070,1.48,2436.9,2436.8,8.39837]
[1728370926071,1.89046,2436.9,2436.8,8.39837]
[1728370926667,1.89046,2436.9,2436.8,3.8839]
[1728370926872,0.4105,2436.7,2436.5,0.41051]
[1728370927185,2.141,2436.6,2436.5,0.41051]
[1728370928784,2.8206,2436.6,2436.5,0.41051]
[1728370930482,4.5406,2436.6,2436.5,0.41051]
[1728370930674,4.5406,2436.6,2436.4,3.2078]
[1728370930878,0.6304,2436.5,2436.4,3.61833]
[1728370934689,4.5406,2436.6,2436.5,0.41052]
[1728370936386,3.2,2436.6,2436.5,0.41052]
[1728370936586,3.2,2436.8,2436.4,3.2078]
[1728370936785,3.2,2436.8,2436.7,0.41049]
[1728370936985,3.2,2436.8,2436.7,3.61829]
[1728370942695,3.2,2437.0,2436.7,7.9782]
[1728370942987,3.2,2437.0,2436.9,0.41046]
[1728370946486,3.2,2437.0,2436.9,3.61826]
[1728370949187,2.50225472,2437.4,2437.1,0.41042]
[1728370949188,3.2,2437.2,2437.1,0.41042]
[1728370949490,4.5054,2437.4,2437.3,0.41039]
[1728370949687,4.91577,2437.4,2437.3,0.41039]
[1728370949887,3.61037,2437.4,2437.3,0.41039]
[1728370950285,3.2,2437.4,2437.3,0.41039]
[1728370951291,3.2,2437.4,2437.2,3.61819]
[1728370951292,3.61038,2437.4,2437.2,3.61819]
[1728370951487,0.6403,2437.3,2437.2,3.61819]
[1728370952593,2.1203,2437.3,2437.2,3.61819]
[1728370953585,2.1203,2437.3,2437.2,0.41039]
[1728370953995,1.48,2437.3,2437.2,0.41039]
[1728370956097,1.48,2437.3,2437.2,3.61819]
[1728370957591,0.6633,2437.5,2437.2,3.2078]
[1728370957791,1.48,2437.3,2437.2,3.6182]
[1728370958194,1.48,2437.3,2437.2,7.7214]
[1728370959701,1.48,2437.3,2437.2,3.6182]
[1728370959898,1.48,2437.3,2437.2,0.4104]
[1728370960598,2.1595,2437.3,2437.2,0.4104]
[1728370960803,2.1595,2437.3,2437.2,3.6182]
[1728370964099,2.1595,2437.3,2437.2,0.4104]
[1728370964992,2.1595,2437.3,2437.2,3.6182]
[1728370967996,2.1595,2437.3,2437.2,0.4104]
[1728370968397,2.1595,2437.3,2437.2,3.6182]
[1728370968704,2.1595,2437.3,2437.2,0.4104]
[1728370969398,2.1595,2437.3,2437.2,3.6182]
[1728370980407,6.2627,2437.3,2437.0,0.41042]
[1728370980712,1.48,2437.1,2437.0,0.41042]
[1728370980916,1.48,2437.1,2436.7,3.832]
[1728370981213,1.48,2436.8,2436.7,4.75542]
[1728370983407,1.48,2436.8,2436.6,0.26682]
[1728370983613,0.6809,2436.7,2436.6,0.26682]
[1728370983811,1.347,2436.7,2436.6,0.26682]
[1728370984201,1.347,2436.7,2436.5,1.3046]
[1728370984409,1.48,2436.6,2436.5,0.92933]
[1728370991814,1.48,2436.6,2436.5,0.6625]
[1728370992106,40.8,2437.6,2436.5,0.6625]
[1728370992310,2.22424,2437.4,2437.0,3.2078]
[1728370992509,2.22424,2437.4,2437.1,2.26837]
[1728370992711,2.22424,2437.4,2437.1,2.0016]
[1728370992913,1.9575,2437.4,2437.1,2.0016]
[1728370993114,2.22425,2437.4,2437.1,2.0016]
[1728370993628,1.48,2437.2,2437.1,2.0016]
[1728370993921,1.48,2437.2,2437.1,1.3454]
[1728370994516,1.48,2437.2,2437.0,3.2078]
[1728370994818,0.6399,2437.1,2437.0,3.2078]
[1728370995417,0.6399,2437.1,2436.9,0.6818]
[1728370995418,4.7431,2437.1,2436.9,0.6818]
[1728370995618,1.48,2437.0,2436.9,0.6818]
[1728370997017,2.7505,2437.0,2436.7,4.72191]
[1728370997214,1.48,2436.8,2436.7,5.39571]
[1728370997419,1.48,2436.8,2436.7,5.39572]
[1728370997720,1.48,2436.8,2436.7,2.18792]
[1728370997916,0.90668,2437.1,2436.7,9.2329]
[1728370997917,0.16137287,2437.1,2436.7,9.2329]
[1728370998117,1.48,2436.9,2436.8,0.2668]
[1728370998520,1.48,2436.9,2436.8,4.3708]
[1728370999423,1.48,2436.9,2436.8,0.2668]
[1728371005220,1.48,2436.9,2436.7,5.1289]
[1728371005526,1.7468,2436.9,2436.7,5.1289]
[1728371005916,1.48,2436.9,2436.7,3.8816]
[1728371006119,1.74679,2436.9,2436.7,3.8816]
[1728371008129,1.74679,2436.9,2436.7,3.2078]
[1728371008523,1.48,2436.9,2436.7,3.2078]
[1728371008724,1.7468,2436.9,2436.7,3.2078]
[1728371009421,4.3708,2436.8,2436.5,0.658]
[1728371009724,2.7843,2436.7,2436.5,0.658]
[1728371009929,3.70722,2436.7,2436.5,0.658]
[1728371013524,1.9604,2436.7,2436.5,0.658]
[1728371013723,1.48,2436.6,2436.5,0.92483]